bitfinex/quotes_SOLUSD_20240613
["timestamp","ask_amount","ask_price","bid_price","bid_amount"]
[1718292580165,2.5053,147.69,147.63,2.5061]
[1718292580342,122.92094991,147.73,147.63,2.5061]
[1718292580343,2.5051,147.7,147.63,15.714]
[1718292580544,2.5049,147.71,147.66,2.5057]
[1718292580742,2.5051,147.7,147.65,2.5058]
[1718292581244,7.00406643,147.75,147.63,20.7264]
[1718292581245,2.505,147.71,147.66,2.5057]
[1718292581838,7.00406643,147.75,147.64,5.0121]
[1718292582055,2.5049,147.71,147.66,2.5056]
[1718292582260,2.5049,147.71,147.64,5.0121]
[1718292582261,7.00406643,147.75,147.64,5.0121]
[1718292582446,2.5049,147.71,147.66,2.5056]
[1718292583046,2.5049,147.71,147.63,33.2572]
[1718292583047,2.505,147.7,147.65,2.5058]
[1718292583257,2.505,147.7,147.66,2.5057]
[1718292583459,2.5049,147.71,147.66,2.5056]
[1718292583669,20.0,147.74,147.66,6.5036]
[1718292583872,2.5046,147.73,147.68,2.5053]
[1718292584041,20.0,147.76,147.66,6.5036]
[1718292584242,2.5049,147.71,147.66,9.0092]
[1718292584441,27.00346358,147.76,147.66,6.5036]
[1718292584642,2.5048,147.72,147.67,2.5055]
[1718292584963,2.5047,147.72,147.67,2.5055]
[1718292585655,2.5049,147.71,147.66,9.0092]
[1718292586649,2.5049,147.71,147.66,6.5036]
[1718292586849,2.5049,147.71,147.66,9.0092]
[1718292587255,2.5048,147.72,147.66,9.0092]
[1718292587448,2.5049,147.71,147.66,6.5036]
[1718292587648,2.5048,147.72,147.67,2.5055]
[1718292587850,2.5045,147.74,147.68,2.5054]
[1718292588050,2.5046,147.73,147.67,2.5055]
[1718292588374,20.0,147.76,147.67,2.5055]
[1718292588548,2.5049,147.71,147.66,9.0093]
[1718292588745,2.5049,147.71,147.66,6.5036]
[1718292589076,20.0,147.74,147.66,6.5036]
[1718292589367,2.5051,147.7,147.66,6.5036]
[1718292589668,20.0,147.74,147.66,6.5036]
[1718292589669,2.5049,147.71,147.66,6.5036]
[1718292590770,2.5051,147.7,147.66,6.5036]
[1718292591173,20.0,147.74,147.66,9.0093]
[1718292591473,2.5048,147.72,147.66,9.0093]
[1718292592177,26.97829524,147.76,147.66,6.5036]
[1718292592377,2.5048,147.72,147.66,9.0092]
[1718292592670,2.505,147.71,147.66,6.5036]
[1718292593171,2.505,147.71,147.66,9.0093]
[1718292593375,2.5048,147.72,147.66,9.0093]
[1718292593773,2.5049,147.71,147.66,9.0093]
[1718292593961,2.5048,147.72,147.66,9.0093]
[1718292594164,2.5049,147.71,147.66,9.0093]
[1718292594477,26.97829524,147.76,147.66,9.0093]
[1718292594674,2.5049,147.71,147.66,6.5036]
[1718292594859,2.505,147.7,147.66,6.5036]
[1718292595056,0.17,147.73,147.63,15.714]
[1718292595252,2.5052,147.7,147.64,2.5059]
[1718292595461,20.0,147.73,147.63,18.2202]
[1718292595663,2.5051,147.7,147.65,2.5059]
[1718292595865,2.5048,147.72,147.64,12.5301]
[1718292596071,20.34,147.75,147.66,2.5056]
[1718292596382,0.17,147.74,147.65,2.5058]
[1718292596557,2.5051,147.7,147.65,2.5058]
[1718292596758,2.5054,147.69,147.63,15.714]
[1718292596952,2.5054,147.69,147.64,2.506]
[1718292597860,2.5052,147.69,147.64,2.506]
[1718292598070,2.5056,147.67,147.63,15.714]
[1718292598578,2.5058,147.66,147.63,15.714]
[1718292598769,100.0,147.69,147.59,2.5068]
[1718292599075,2.5056,147.67,147.61,2.5065]
[1718292599285,2.5058,147.66,147.6,2.5066]
[1718292599582,2.5056,147.67,147.59,12.5345]
[1718292599769,2.5056,147.67,147.62,2.5063]
[1718292600080,2.5055,147.68,147.63,2.5062]
[1718292600768,2.5055,147.68,147.62,2.5063]
[1718292601071,2.5054,147.68,147.62,2.5063]
[1718292601273,2.5053,147.69,147.61,5.013]
[1718292601487,20.0,147.72,147.59,10.0276]
[1718292601781,2.5053,147.69,147.63,2.5061]
[1718292601989,2.5053,147.69,147.61,12.5329]
[1718292601990,20.0,147.72,147.6,10.027]
[1718292602156,20.0,147.72,147.58,45.8338]
[1718292602157,2.5064,147.62,147.58,22.2138]
[1718292602357,0.17,147.67,147.58,22.2138]
[1718292602678,0.17,147.65,147.55,2.5075]
[1718292602860,100.17,147.64,147.54,21.595]
[1718292603065,0.17,147.62,147.54,21.595]
[1718292603389,0.17,147.62,147.54,24.1027]
[1718292603556,20.0,147.63,147.55,5.0151]
[1718292603751,20.0,147.65,147.56,5.0148]
[1718292603951,20.17,147.67,147.58,2.507]
[1718292604182,0.17,147.66,147.59,2.5069]
[1718292604387,20.17,147.67,147.55,12.5378]
[1718292604699,0.34,147.66,147.58,2.507]
[1718292605363,259.9,147.72,147.61,16.6326]
[1718292605680,100.0,147.76,147.63,7.5187]
[1718292605987,362.57439667,147.78,147.69,2.5052]
[1718292606290,2.67439667,147.78,147.69,23.11]
[1718292606457,2.67439667,147.78,147.73,7.5134]
[1718292606671,2.67439667,147.78,147.77,2.5038]
[1718292606877,2.67439667,147.78,147.77,7.5115]
[1718292607076,7.00969066,147.84,147.77,7.5115]
[1718292607077,7.00969066,147.84,147.8,2.5032]
[1718292607379,7.00969066,147.84,147.78,23.11]
[1718292607716,0.8455803,147.88,147.83,2.5028]
[1718292607874,7.85464805,147.88,147.8,5.1767]
[1718292608073,7.85464805,147.88,147.81,0.17]
[1718292608280,0.8455803,147.88,147.81,23.28]
[1718292608591,0.8455803,147.88,147.79,26.1474]
[1718292608797,0.8455803,147.88,147.79,6.1474]
[1718292609108,0.8455803,147.88,147.77,36.04203083]
[1718292609300,0.8455803,147.88,147.84,2.5026]
[1718292609677,0.8455803,147.88,147.8,20.0]
[1718292609907,0.8455803,147.88,147.82,2.503]
[1718292610210,0.8455803,147.88,147.84,2.5026]
[1718292610501,0.8455803,147.88,147.79,20.0]
[1718292610502,0.8455803,147.88,147.87,2.5021]
[1718292610681,0.8455803,147.88,147.83,20.0]
[1718292610879,0.8455803,147.88,147.76,5.1778]
[1718292611109,0.8455803,147.88,147.78,2.5036]
[1718292611110,2.5027,147.84,147.78,2.5036]
[1718292611405,100.8455803,147.88,147.75,2.5041]
[1718292611406,2.5032,147.81,147.75,2.5041]
[1718292611603,105.0051,147.85,147.75,2.5041]
[1718292611604,2.5031,147.82,147.75,2.5041]
[1718292611787,20.0,147.87,147.78,2.5035]
[1718292611991,5.3447,147.86,147.74,6.089]
[1718292612197,100.17,147.83,147.71,15.0049]
[1718292612398,5.0064,147.81,147.71,15.0049]
[1718292612586,20.0,147.8,147.71,15.0049]
[1718292612781,2.5043,147.75,147.65,20.4849]
[1718292612984,2.5045,147.74,147.67,2.5054]
[1718292613184,125.0075,147.78,147.65,20.4849]
[1718292613185,100.0,147.76,147.65,15.4734]
[1718292613407,12.6896,147.77,147.65,15.4734]
[1718292613408,0.17,147.77,147.65,15.4734]
[1718292613597,2.5046,147.73,147.67,2.5055]
[1718292613775,105.0081,147.76,147.67,2.5055]
[1718292613776,2.5044,147.74,147.67,2.5055]
[1718292613981,20.0,147.75,147.67,2.5055]
[1718292614278,22.5042,147.75,147.69,2.5052]
[1718292614479,2.5049,147.71,147.65,2.5058]
[1718292614678,2.505,147.7,147.64,8.6658]
[1718292614890,2.5048,147.72,147.65,2.5058]
[1718292615098,2.5048,147.72,147.66,2.5057]
[1718292615298,22.5044,147.74,147.68,2.5054]
[1718292615486,2.5042,147.75,147.68,2.5054]
[1718292615889,2.5035,147.79,147.73,2.5045]
[1718292616404,105.0049,147.86,147.7,10.0197]
[1718292616715,2.5024,147.86,147.79,2.5034]
[1718292616883,2.5024,147.86,147.76,12.5199]
[1718292616884,2.5024,147.86,147.8,2.5032]
[1718292617193,2.5023,147.86,147.8,2.5032]
[1718292617396,0.8455803,147.88,147.75,6.0408]
[1718292617619,5.005,147.86,147.75,6.0408]
[1718292617923,0.8455803,147.88,147.76,0.17]
[1718292618104,2.5024,147.86,147.8,2.5032]
[1718292618291,2.5024,147.86,147.76,8.0219]
[1718292618292,2.5026,147.85,147.79,2.5035]
[1718292618493,2.5028,147.84,147.78,2.5036]
[1718292618675,0.8455803,147.88,147.76,0.17]
[1718292619081,0.8455803,147.88,147.79,2.5034]
[1718292619282,0.8455803,147.88,147.76,37.6979]
[1718292619478,0.8455803,147.88,147.8,2.5032]
[1718292619713,0.8455803,147.88,147.82,2.503]
[1718292619882,0.8455803,147.88,147.81,2.5031]
[1718292620082,0.8455803,147.88,147.79,5.1769]
[1718292620397,2.5027,147.84,147.78,2.5036]
[1718292620594,5.8497803,147.88,147.75,6.0408]
[1718292620595,8.3519803,147.88,147.75,6.0408]
[1718292620793,2.5033,147.8,147.74,2.5043]
[1718292621297,12.5118,147.86,147.73,5.0091]
[1718292621607,2.5038,147.78,147.72,2.5047]
[1718292621819,0.17,147.82,147.7,6.0742]
[1718292622025,20.68,147.82,147.7,6.0742]
[1718292622218,2.5038,147.78,147.72,2.5047]
[1718292622619,2.5038,147.78,147.73,2.5045]
[1718292622822,2.5036,147.79,147.73,2.5045]
[1718292623023,7.5096,147.81,147.71,2.5048]
[1718292623204,2.5038,147.77,147.71,2.5048]
[1718292623404,2.5038,147.78,147.72,2.5047]
[1718292623713,2.5038,147.78,147.72,2.5046]
[1718292623909,2.5032,147.81,147.72,7.5141]
[1718292624097,2.5027,147.84,147.79,2.5035]
[1718292624299,2.5024,147.86,147.8,2.5032]
[1718292624530,5.0048,147.86,147.75,5.0083]
[1718292624734,2.5032,147.81,147.75,2.5041]
[1718292624903,2.5029,147.83,147.77,2.5038]
[1718292625229,7.00674265,147.87,147.79,2.5034]
[1718292625525,2.5034,147.8,147.74,2.5043]
[1718292625736,100.0,147.84,147.71,5.0098]
[1718292626036,2.5034,147.8,147.75,2.5042]
[1718292626205,12.514,147.84,147.76,2.504]
[1718292626401,100.8455803,147.88,147.73,10.018]
[1718292626607,0.17,147.86,147.77,2.5037]
[1718292626805,2.5024,147.86,147.8,2.5032]
[1718292627105,5.0048,147.86,147.73,7.5133]
[1718292627435,2.5031,147.82,147.74,20.17]
[1718292627613,2.5031,147.82,147.76,2.5039]
[1718292627933,120.0,147.87,147.76,2.5039]
[1718292627934,2.5032,147.81,147.76,2.5039]
[1718292628223,2.5023,147.87,147.81,2.503]
[1718292628429,2.5023,147.87,147.82,2.503]
[1718292628630,2.5023,147.87,147.81,2.5031]
[1718292628924,2.5023,147.87,147.82,2.503]
[1718292629238,2.5027,147.84,147.79,2.5034]
[1718292629432,2.5027,147.84,147.78,2.5036]
[1718292629821,0.8455803,147.88,147.81,2.5031]
[1718292630013,0.8455803,147.88,147.82,2.5029]
[1718292630433,3.3476803,147.88,147.82,2.5029]
[1718292630625,0.8455803,147.88,147.83,2.5027]
[1718292630825,0.8455803,147.88,147.79,5.0069]
[1718292631026,2.5025,147.85,147.79,2.5034]
[1718292631342,2.5025,147.85,147.8,2.5033]
[1718292631717,0.8455803,147.88,147.76,20.0]
[1718292631919,2.5031,147.82,147.77,2.5038]
[1718292632114,5.0052,147.85,147.77,2.5038]
[1718292632329,5.0045,147.87,147.79,2.5035]
[1718292632513,20.0,147.86,147.79,2.5035]
[1718292632949,20.0,147.86,147.78,2.5036]
[1718292633323,2.5028,147.84,147.78,2.5036]
[1718292633540,2.5028,147.83,147.77,2.5038]
[1718292633842,20.0,147.86,147.72,0.17]
[1718292634141,20.51,147.87,147.73,15.0273]
[1718292634335,2.5033,147.81,147.75,2.5041]
[1718292634542,2.5033,147.81,147.76,2.504]
[1718292634733,2.5033,147.81,147.73,22.5409]
[1718292634734,2.5033,147.8,147.75,2.5041]
[1718292635319,2.5035,147.79,147.74,2.5043]
[1718292635534,2.5034,147.8,147.75,2.5042]
[1718292636046,2.5036,147.79,147.74,2.5043]
[1718292636420,6.6409,147.84,147.72,20.0]
[1718292636620,22.5029,147.83,147.77,2.5037]
[1718292637126,20.7046,147.85,147.78,2.5037]
[1718292637127,5.0051,147.85,147.78,2.5037]
[1718292637319,22.5028,147.84,147.78,2.5037]
[1718292637517,22.5028,147.84,147.78,2.5036]
[1718292637746,20.0,147.85,147.78,2.5036]
[1718292638126,20.0,147.85,147.77,2.5038]
[1718292638330,2.5031,147.82,147.77,2.5038]
[1718292638529,20.0,147.87,147.67,26.92]
[1718292638530,100.0,147.84,147.67,26.92]
[1718292638824,20.0,147.87,147.73,10.0176]
[1718292638825,20.0,147.83,147.73,10.0176]
[1718292639021,7.2913803,147.88,147.69,26.94]
[1718292639247,2.5028,147.84,147.79,2.5034]
[1718292639670,2.5024,147.86,147.77,10.0152]
[1718292639821,2.5024,147.86,147.79,0.17]
[1718292640023,2.5024,147.86,147.78,15.3619]
[1718292640248,7.2913803,147.88,147.8,10.0131]
[1718292640249,3.3475803,147.88,147.8,10.0131]
[1718292640485,3.3475803,147.88,147.81,5.1762]
[1718292640770,0.8455803,147.88,147.82,2.5029]
[1718292640926,0.8455803,147.88,147.83,2.5027]
[1718292641129,0.8455803,147.88,147.81,5.1762]
[1718292641445,3.3475803,147.88,147.83,2.5027]
[1718292641861,0.8455803,147.88,147.82,0.17]
[1718292642033,0.8455803,147.88,147.82,2.6729]
[1718292642454,0.8455803,147.88,147.81,2.6731]
[1718292642734,2.5022,147.87,147.82,2.503]
[1718292643163,2.5022,147.87,147.81,2.6731]
[1718292643325,0.8455803,147.88,147.84,0.17]
[1718292643533,0.8455803,147.88,147.86,2.5022]
[1718292643734,0.8455803,147.88,147.84,12.6831]
[1718292643735,0.8455803,147.88,147.84,2.5026]
[1718292644035,0.8455803,147.88,147.85,2.5025]
[1718292644531,0.8455803,147.88,147.84,2.5026]
[1718292644728,0.8455803,147.88,147.83,0.34]
[1718292644933,0.8455803,147.88,147.86,2.5022]
[1718292645272,0.8455803,147.88,147.85,0.34]
[1718292645438,0.8455803,147.88,147.82,0.34]
[1718292645776,0.8455803,147.88,147.86,2.5022]
[1718292645947,0.8455803,147.88,147.87,2.5021]
[1718292646256,0.8455803,147.88,147.87,2.8421]
[1718292646462,0.8455803,147.88,147.87,2.6721]
[1718292646663,0.8455803,147.88,147.87,25.7016]
[1718292646843,0.8455803,147.88,147.87,8.1864]
[1718292647042,0.8455803,147.88,147.87,15.6929]
[1718292647255,0.8455803,147.88,147.87,8.1864]
[1718292647758,0.8455803,147.88,147.87,15.6929]
[1718292647982,0.8455803,147.88,147.87,25.7016]
[1718292648338,0.8455803,147.88,147.87,51.8177]
[1718292648541,0.8455803,147.88,147.87,2.5021]
[1718292648744,0.8455803,147.88,147.87,2.6721]
[1718292648965,0.8455803,147.88,147.87,17.6851]
[1718292649261,0.8455803,147.88,147.87,45.1916]
[1718292649644,0.8455803,147.88,147.87,45.3616]
[1718292649847,0.8455803,147.88,147.87,45.7016]
[1718292651975,8.7409,148.0,147.88,0.17]
[1718292652169,6.2409,148.0,147.93,0.17]
[1718292652384,0.8455803,148.03,147.93,0.17]
[1718292652385,0.8455803,148.03,147.95,5.0014]
[1718292652683,2.4999,148.01,147.96,2.5005]
[1718292652893,0.8455803,148.03,147.96,2.5005]
[1718292652894,2.5,148.0,147.96,2.5005]
[1718292653069,2.5,148.0,147.93,13.1856]
[1718292653070,0.8455803,148.03,147.95,0.34]
[1718292653274,3.3451803,148.03,147.98,2.5003]
[1718292653479,0.8455803,148.03,147.99,2.6701]
[1718292653659,0.8455803,148.03,147.99,2.5001]
[1718292653859,0.8455803,148.03,148.01,2.4997]
[1718292654079,3.3450803,148.03,147.98,0.17]
[1718292654280,2.4999,148.01,147.96,2.5006]
[1718292654483,3.3450803,148.03,147.98,2.5002]
[1718292654692,0.8455803,148.03,147.96,20.0]
[1718292654855,0.8455803,148.03,147.98,2.5002]
[1718292655054,0.8455803,148.03,148.01,2.4998]
[1718292655269,0.8455803,148.03,148.01,2.4997]
[1718292655512,0.8455803,148.03,147.92,6.098]
[1718292655690,0.8455803,148.03,147.88,16.45062216]
[1718292655868,2.5007,147.96,147.91,2.5015]
[1718292656069,6.0193,147.99,147.9,2.5016]
[1718292656268,20.0,147.98,147.9,2.5016]
[1718292656467,20.0,147.98,147.91,2.5014]
[1718292656688,20.0,147.98,147.87,5.0043]
[1718292656689,20.0,147.98,147.92,2.5013]
[1718292656880,6.0193,147.99,147.93,2.501]
[1718292657075,6.0193,147.99,147.94,2.5009]
[1718292657296,7.4120803,148.03,147.95,2.5008]
[1718292657466,20.0,148.02,147.95,2.5007]
[1718292657670,20.0,148.02,147.92,2.5012]
[1718292657872,20.0,148.02,147.91,5.173]
[1718292658074,20.0,148.02,147.95,2.5007]
[1718292658483,20.0,148.02,147.96,2.5006]
[1718292658695,20.0,148.02,147.95,2.5007]
[1718292659272,20.0,148.02,147.96,2.5006]
[1718292659469,20.0,148.02,147.97,0.17]
[1718292660199,0.8455803,148.03,147.96,0.51]
[1718292660372,0.8455803,148.03,147.93,25.0022]
[1718292660572,0.8455803,148.03,147.95,2.5007]
[1718292660773,0.8455803,148.03,147.95,0.17]
[1718292660995,0.8455803,148.03,147.97,2.5004]
[1718292661196,0.8455803,148.03,147.95,0.34]
[1718292661197,0.8455803,148.03,147.99,0.17]
[1718292661508,0.8455803,148.03,148.01,2.4997]
[1718292661801,0.8455803,148.03,148.02,2.6696]
[1718292662476,0.8455803,148.03,148.01,2.4998]
[1718292663196,0.8455803,148.03,148.02,2.6696]
[1718292663380,0.8455803,148.03,148.02,3.1796]
[1718292664400,0.8455803,148.03,148.02,8.1789]
[1718292664595,0.8455803,148.03,148.02,3.1796]
[1718292664799,0.8455803,148.03,148.02,0.17]
[1718292665475,0.8455803,148.03,148.02,2.6696]
[1718292665992,0.8455803,148.03,148.02,2.8396]
[1718292666201,0.8455803,148.03,148.02,3.1796]
[1718292666705,0.8455803,148.03,148.02,8.1789]
[1718292666907,0.8455803,148.03,148.02,3.0096]
[1718292667210,0.8455803,148.03,147.95,5.0015]
[1718292667418,0.8455803,148.03,147.95,12.5039]
[1718292667705,0.8455803,148.03,147.95,5.0014]
[1718292667883,0.8455803,148.03,147.93,5.0021]
[1718292668082,0.8455803,148.03,147.95,2.5007]
[1718292668285,0.8455803,148.03,147.95,7.5024]
[1718292668512,0.8455803,148.03,147.98,2.5003]
[1718292668717,0.8455803,148.03,147.97,2.5004]
[1718292669085,0.8455803,148.03,147.96,2.5006]
[1718292669396,6.3541,148.02,147.95,2.5007]
[1718292669597,0.17,148.0,147.88,5.0038]
[1718292669795,20.0,148.01,147.89,7.5055]
[1718292670009,6.3541,148.02,147.87,100.0]
[1718292670216,6.3541,148.02,147.97,2.5003]
[1718292670591,6.3541,148.02,147.95,5.0015]
[1718292670795,6.3541,148.02,147.97,2.5004]
[1718292671100,6.3541,148.02,147.93,2.501]
[1718292671314,6.3541,148.02,147.95,2.5007]
[1718292671498,6.3541,148.02,147.92,20.0]
[1718292671697,0.17,148.01,147.89,10.0073]
[1718292671899,20.68,148.01,147.89,2.5017]
[1718292672091,20.68,148.01,147.87,5.0042]
[1718292672291,20.68,148.01,147.9,2.5016]
[1718292672529,20.68,148.01,147.94,2.5009]
[1718292672830,20.0,148.01,147.9,5.0032]
[1718292673031,20.0,148.01,147.93,2.5011]
[1718292673206,20.0,148.01,147.92,10.0053]
[1718292673511,20.0,148.01,147.94,2.5009]
[1718292673720,20.0,148.01,147.93,2.5011]
[1718292674015,20.0,148.01,147.9,20.0]
[1718292674190,0.51,148.0,147.9,2.5015]
[1718292674606,20.0,148.01,147.91,2.5014]
[1718292674807,20.0,148.01,147.92,2.5012]
[1718292675417,0.17,148.0,147.9,0.17]
[1718292675632,0.51,148.0,147.82,6.3139]
[1718292675952,0.17,147.97,147.87,2.5021]
[1718292676109,165.68,147.97,147.87,2.5021]
[1718292677047,65.68,147.97,147.88,2.5019]
[1718292677338,65.68,147.97,147.89,2.5018]
[1718292677557,72.62692918,147.97,147.88,2.5019]
[1718292677863,72.62692918,147.97,147.86,2.5022]
[1718292678147,0.17,147.95,147.86,2.5022]
[1718292678310,0.17,147.95,147.86,2.5023]
[1718292678509,0.17,147.95,147.85,2.5024]
[1718292678746,0.17,147.95,147.84,2.5026]
[1718292678911,65.17,147.95,147.84,2.5026]
[1718292679108,0.51,147.94,147.84,2.5026]
[1718292679347,0.51,147.94,147.85,2.5025]
[1718292679521,0.51,147.94,147.84,2.5026]
[1718292679848,0.51,147.94,147.77,5.0075]
[1718292679849,6.127,147.92,147.77,5.0075]
[1718292680150,20.17,147.91,147.82,2.503]
[1718292680317,20.17,147.91,147.78,6.3139]
[1718292680318,15.7751,147.9,147.78,6.3139]
[1718292680513,15.7751,147.9,147.83,10.0111]
[1718292680718,15.7751,147.9,147.82,5.0059]
[1718292680912,15.7751,147.9,147.85,2.5024]
[1718292681221,15.7751,147.9,147.82,7.679]
[1718292681433,15.7751,147.9,147.83,13.0241]
[1718292681726,15.7751,147.9,147.83,2.5028]
[1718292681940,20.0,147.89,147.84,2.5027]
[1718292682138,20.0,147.89,147.82,5.0059]
[1718292682342,20.0,147.89,147.84,2.5026]
[1718292682543,15.7751,147.9,147.85,2.5025]
[1718292682842,15.7751,147.9,147.84,2.5026]
[1718292683165,15.7751,147.9,147.86,2.5022]
[1718292683456,15.7751,147.9,147.85,2.5024]
[1718292684541,15.7751,147.9,147.84,2.5026]
[1718292685318,15.7751,147.9,147.85,2.5023]
[1718292686121,15.7751,147.9,147.86,2.5023]
[1718292686931,15.7751,147.9,147.85,7.6775]
[1718292687124,15.7751,147.9,147.89,2.5018]
[1718292687327,15.5758,147.94,147.89,12.5091]
[1718292687547,15.5758,147.94,147.91,2.5014]
[1718292688116,15.5758,147.94,147.91,2.5013]
[1718292688532,15.5758,147.94,147.9,2.5015]
[1718292689740,6.5953,147.96,147.91,2.5014]
[1718292689940,6.5953,147.96,147.92,2.5013]
[1718292690156,16.2729,147.98,147.91,0.34]
[1718292690360,16.2729,147.98,147.91,2.5014]
[1718292690528,16.2729,147.98,147.92,2.5013]
[1718292690728,16.2729,147.98,147.91,2.5014]
[1718292690949,16.2729,147.98,147.92,2.5013]
[1718292691122,16.2729,147.98,147.9,5.3432]
[1718292691330,16.2729,147.98,147.92,2.5012]
[1718292692541,16.2729,147.98,147.9,0.34]
[1718292692720,20.0,147.97,147.9,2.8416]
[1718292692922,20.0,147.97,147.84,10.0105]
[1718292693153,15.623,147.95,147.82,28.7515]
[1718292693356,20.0,147.94,147.8,60.43501281]
[1718292693533,6.0209,147.93,147.85,2.5025]
[1718292693855,20.0,147.92,147.84,2.5025]
[1718292694042,20.0,147.92,147.85,2.5025]
[1718292694357,20.0,147.92,147.87,2.5021]
[1718292694649,20.0,147.92,147.85,2.5024]
[1718292694856,20.0,147.92,147.84,2.5026]
[1718292695229,15.2208,147.91,147.8,5.0065]
[1718292695430,20.0,147.9,147.78,5.0072]
[1718292695658,20.0,147.9,147.81,2.5031]
[1718292695873,20.0,147.9,147.76,12.5199]
[1718292695874,0.17,147.89,147.76,12.5199]
[1718292696033,0.51,147.89,147.79,2.5034]
[1718292696233,6.6713,147.88,147.77,2.5037]
[1718292696538,15.9317,147.85,147.72,16.07531175]
[1718292696746,15.9317,147.85,147.75,2.5042]
[1718292696953,20.0,147.84,147.75,2.5042]
[1718292697266,20.0,147.84,147.73,5.0091]
[1718292697470,20.0,147.84,147.76,2.504]
[1718292697968,6.5013,147.83,147.74,2.5043]
[1718292698276,0.17,147.81,147.72,2.5046]
[1718292698572,45.51,147.81,147.71,5.18155947]
[1718292698752,20.0,147.8,147.72,2.5047]
[1718292699065,20.0,147.8,147.71,22.5435]
[1718292699264,20.0,147.8,147.74,2.5043]
[1718292699470,20.0,147.82,147.74,2.5043]
[1718292699770,20.0,147.82,147.73,2.5045]
[1718292699940,0.17,147.81,147.68,7.5159]
[1718292700143,0.17,147.79,147.7,2.5049]
[1718292700369,20.68,147.79,147.7,2.5049]
[1718292700667,20.68,147.79,147.68,2.5053]
[1718292700668,6.2806,147.78,147.68,2.5053]
[1718292700869,51.2806,147.78,147.66,2.5056]
[1718292701071,20.17,147.77,147.67,2.5055]
[1718292701451,45.34,147.76,147.66,2.5056]
[1718292701652,20.34,147.75,147.65,2.5058]
[1718292701953,45.17,147.74,147.65,2.5058]
[1718292702150,20.17,147.73,147.65,2.5058]
[1718292702349,21.7115,147.72,147.64,2.506]
[1718292702688,20.34,147.71,147.62,2.5063]
[1718292702856,65.51,147.71,147.62,2.5063]
[1718292703449,0.17,147.7,147.62,2.5063]
[1718292703854,0.17,147.7,147.56,5.0146]
[1718292704057,0.17,147.7,147.6,2.5066]
[1718292704254,0.17,147.7,147.59,2.5068]
[1718292704255,0.17,147.68,147.59,2.5068]
[1718292704451,45.51,147.68,147.55,15.0454]
[1718292704673,15.5193,147.66,147.53,5.0158]
[1718292704847,6.4235,147.64,147.54,5.0155]
[1718292705249,20.0,147.63,147.56,2.5074]
[1718292705455,20.0,147.63,147.54,2.5076]
[1718292705659,0.17,147.62,147.54,2.5076]
[1718292705958,100.0,147.6,147.5,3.3539803]
[1718292706158,45.17,147.62,147.5,3.3539803]
[1718292706159,20.17,147.59,147.5,0.8455803]
[1718292706371,20.17,147.59,147.5,3.3539803]
[1718292706758,20.17,147.59,147.52,2.508]
[1718292706759,20.0,147.59,147.52,2.508]
[1718292706965,0.17,147.61,147.51,2.5082]
[1718292707154,45.68,147.61,147.5,3.3539803]
[1718292707494,0.17,147.59,147.5,3.3539803]
[1718292707657,0.51,147.59,147.51,2.5083]
[1718292707995,15.2897,147.57,147.5,0.8455803]
[1718292708276,20.0,147.56,147.5,0.8455803]
[1718292708572,20.0,147.56,147.51,2.5082]
[1718292708752,6.078,147.55,147.5,0.8455803]
[1718292708956,20.0,147.54,147.5,0.8455803]